lending/lending_fUSD_20240522
["ID","MTS","AMOUNT","RATE_DAILY","PERIOD"]
[327736196,1716406248155,-215.887237,0.0002287,7]
[327736197,1716406248164,-386.129647,0.0002287,7]
[327736198,1716406248173,-386.129647,0.0002287,7]
[327736199,1716406248183,-151.0,0.0002287,7]
[327736200,1716406248192,-2155.158606,0.0002287,7]
[327736201,1716406248201,-167.486043,0.0002287,2]
[327736202,1716406248211,-6335.483947,0.0002287,2]
[327736203,1716406248221,-1495.936157,0.0002287,2]
[327736204,1716406248231,-671.594503,0.0002287,2]
[327736205,1716406248240,-1601.304016,0.0002287,2]
[327736206,1716406248250,-418.441236,0.0002287,2]
[327736207,1716406248259,-216.461125,0.0002287,2]
[327736208,1716406248269,-11630.388086,0.0002287,2]
[327736209,1716406248279,-208.41694,0.0002287,2]
[327736210,1716406248288,-766.769468,0.0002287,2]
[327736211,1716406248297,-150.887097,0.0002287,2]
[327736212,1716406248309,-17445.58213,0.0002287,2]
[327736213,1716406248318,-187.687345,0.0002287,2]
[327736214,1716406248328,-185.076375,0.0002287,2]
[327736215,1716406248337,-312.62541,0.0002287,2]
[327736216,1716406248347,-1150.154201,0.0002287,2]
[327736217,1716406248362,-5070.0,0.000229,2]
[327736218,1716406248371,-5608.93395099,0.000229,2]
[327736219,1716406248381,-239.15885777,0.000229,2]
[327736220,1716406248391,-212.92593445,0.000229,2]
[327736221,1716406248402,-168.53006915,0.000229,2]
[327736222,1716406248412,-700.0,0.000229,8]
[327736223,1716406248422,-159.51716851,0.00022912,2]
[327736224,1716406248432,-391.88137859,0.00022944,2]
[327736225,1716406248443,-166.68984864,0.00022951,2]
[327736226,1716406248454,-150.5,0.0002297,15]
[327736227,1716406248464,-278.0,0.0002297,15]
[327736228,1716406248474,-278.0,0.0002297,15]
[327736229,1716406248484,-150.5,0.0002297,15]
[327736230,1716406248493,-150.5,0.0002298,15]
[327736231,1716406248503,-278.0,0.0002298,15]
[327736232,1716406248513,-278.0,0.0002298,15]
[327736233,1716406248522,-278.0,0.0002298,15]
[327736234,1716406248532,-150.5,0.0002298,15]
[327736235,1716406248541,-150.5,0.0002298,15]
[327736236,1716406248551,-151.0,0.0002298,7]
[327736237,1716406248562,-153.070027,0.0002298,7]
[327736238,1716406248572,-3290.0,0.00022986,2]
[327736239,1716406248582,-3206.0,0.00022986,2]
[327736240,1716406248592,-150.5,0.0002299,15]
[327736241,1716406248601,-278.0,0.0002299,15]
[327736242,1716406248611,-278.0,0.0002299,15]
[327736243,1716406248620,-278.0,0.0002299,15]
[327736244,1716406248631,-150.5,0.0002299,15]
[327736245,1716406248641,-150.5,0.0002299,15]
[327736246,1716406248651,-250.76858003,0.00022992,2]
[327736247,1716406248661,-156.52590867,0.00022999,10]
[327736248,1716406248671,-150.0,0.00022999,10]
[327736249,1716406248680,-150.0,0.00022999,10]
[327736250,1716406248690,-1147946.50017497,0.00023,11]
[327736251,1716406248700,-5511.49091993,0.00023,2]
[327736252,1716406248710,-1800.0,0.00023,2]
[327736253,1716406248719,-913.0,0.00023,2]
[327736254,1716406248729,-815.09,0.00023,2]
[327736255,1716406248738,-151.0,0.00023,7]
[327736256,1716406248748,-151.0,0.00023,7]
[327736257,1716406248758,-151.0,0.00023,7]
[327736258,1716406248768,-151.0,0.00023,7]
[327736259,1716406248778,-151.0,0.00023,7]
[327736260,1716406248788,-151.0,0.00023,7]
[327736261,1716406248798,-204.208378,0.00023,7]
[327736262,1716406248808,-500.0,0.00023,2]
[327736263,1716406248818,-151.0,0.00023,7]
[327736264,1716406248828,-151.0,0.00023,7]
[327736265,1716406248838,-155.836293,0.00023,7]
[327736266,1716406248847,-233.646404,0.00023,7]
[327736267,1716406248857,-233.646404,0.00023,7]
[327736268,1716406248867,-233.646404,0.00023,7]
[327736269,1716406248877,-233.646404,0.00023,7]
[327736270,1716406248887,-151.0,0.00023,7]
[327736271,1716406248897,-151.0,0.00023,7]
[327736272,1716406248906,-151.0,0.00023,7]
[327736273,1716406248916,-151.0,0.00023,7]
[327736274,1716406248925,-151.0,0.00023,7]
[327736275,1716406248935,-151.0,0.00023,7]
[327736276,1716406248945,-151.0,0.00023,7]
[327736277,1716406248954,-151.0,0.00023,7]
[327736278,1716406248964,-151.0,0.00023,7]
[327736279,1716406248974,-151.0,0.00023,7]
[327736280,1716406248983,-151.0,0.00023,7]
[327736281,1716406248993,-151.0,0.00023,7]
[327736282,1716406249003,-157.637051,0.00023,7]
[327736283,1716406249012,-151.0,0.00023,7]
[327736284,1716406249022,-151.0,0.00023,7]
[327736285,1716406249032,-151.0,0.00023,7]
[327736286,1716406249042,-151.0,0.00023,7]
[327736287,1716406249052,-151.607395,0.00023,7]
[327736288,1716406249066,-151.0,0.00023,7]
[327736289,1716406249075,-151.0,0.00023,7]
[327736290,1716406249086,-227.375628,0.00023,7]
[327736291,1716406249096,-824236.21102421,0.00023,5]
[327736292,1716406249503,-1785.71493991,0.00023,5]
[327736293,1716406249571,-500.0,0.00017735,2]
[327736294,1716406249580,-500.0,0.00017735,2]
[327736295,1716406249590,-5139.73353367,0.00023,5]
[327736296,1716406249728,-975.40414729,0.00012999,2]
[327736297,1716406249740,-688.88190235,0.00012999,2]
[327736298,1716406249750,-500.0,0.00017735,2]
[327736299,1716406249759,-110.89800075,0.00017735,2]
[327736300,1716406250674,-389.10199925,0.00017735,2]
[327736301,1716406250684,-500.0,0.00017735,2]
[327736302,1716406250694,-500.0,0.00017735,2]
[327736303,1716406250704,-500.0,0.00017735,2]
[327736304,1716406250713,-204.95051586,0.00017735,2]
[327736305,1716406250725,-295.04948414,0.00017735,2]
[327736306,1716406250735,-500.0,0.00017735,2]
[327736307,1716406250744,-53.09830747,0.00017735,2]
[327736308,1716406250833,-446.90169253,0.00017735,2]
[327736309,1716406250843,-12999.20893948,0.0001883,2]
[327736310,1716406250854,-7583.84316517,0.0001883,2]
[327736327,1716406381947,159.12,0.00021589,30]
[327736328,1716406382336,159.12,0.00027616,30]
[327736342,1716406436637,359.0,0.0001275,2]
[327736346,1716406444200,2461.29111359,0.000118,2]
[327736347,1716406533388,266.92479324,0.00015,14]
[327736348,1716406560762,155.0,0.00012801,2]
[327736349,1716406569212,155.0,0.00012801,2]
[327736350,1716406575735,409.91577249,0.00012801,2]
[327736351,1716406580244,155.0,0.00012801,2]
[327736352,1716406587885,204.9501833,0.00012801,2]
[327736353,1716406590527,155.0,0.00012801,2]
[327736354,1716406593357,155.0,0.00012801,2]
[327736355,1716406595262,155.0,0.00012801,2]
[327736356,1716406604387,3285.77643226,0.00012801,2]
[327736357,1716406605955,321.83343734,0.00012801,2]
[327736358,1716406612807,151.0,0.00024035,30]
[327736359,1716406612885,151.0,0.00023555,120]
[327736360,1716406632123,2477.94058615,0.000275,30]
[327736361,1716406670140,324.99711042,0.00012801,2]
[327736362,1716406672599,344.59163649,0.00012801,2]
[327736363,1716406674427,1789.09722972,0.00012801,2]
[327736368,1716406928594,155.0,0.00012801,2]
[327736369,1716407003265,159.12,0.00021589,30]
[327736370,1716407007813,-176.68023054,0.00012803,2]
[327736371,1716407007839,-2223.31976946,0.00012804,2]
[327736374,1716407103387,150.0,0.00012767,2]
[327736378,1716407340405,211.0,0.00028,30]
[327736390,1716407431706,-176.68023054,0.00012803,2]
[327736391,1716407431716,-2660.09089057,0.00012804,2]
[327736392,1716407431726,-2660.09089057,0.00012804,2]
[327736393,1716407431735,-2660.09089057,0.00012804,2]
[327736394,1716407431744,-2413.60655903,0.00012805,2]
[327736395,1716407431753,-266.42429918,0.00012806,2]
[327736396,1716407431765,-2807.65179249,0.00012806,2]
[327736397,1716407431774,-10408.16301187,0.00012807,2]
[327736398,1716407431788,-313.2,0.00012863,2]
[327736399,1716407431797,-977.782,0.00012889,2]
[327736400,1716407431807,-21319.7478,0.00012889,2]
[327736401,1716407431817,-428.5702818,0.000129,2]
[327736402,1716407431827,-321.50938792,0.00012973,2]
[327736403,1716407431839,-211.04941276,0.0001299,2]
[327736404,1716407431848,-364.27737293,0.00012998,2]
[327736405,1716407431859,-318.04989705,0.00012998,2]
[327736406,1716407431872,-155.54702815,0.00012998,2]
[327736407,1716407431881,-157.1988705,0.00012998,2]
[327736408,1716407431890,-488.66319788,0.00012998,2]
[327736409,1716407431899,-298.89054864,0.00012998,2]
[327736410,1716407431908,-5272.17642688,0.00012998,2]
[327736411,1716407431918,-155.08356513,0.00012998,2]
[327736412,1716407431927,-292.72818215,0.00012998,2]
[327736413,1716407431937,-156.48842633,0.00012998,2]
[327736414,1716407431948,-197.33053789,0.00012998,2]
[327736415,1716407431958,-407.61021482,0.00012998,2]
[327736416,1716407431967,-204.67440694,0.00012998,2]
[327736417,1716407431976,-230.61643751,0.00012998,2]
[327736418,1716407431985,-156.63077785,0.00012998,2]
[327736419,1716407431994,-199.86404443,0.00012998,2]
[327736420,1716407432003,-366.61545319,0.00012998,2]
[327736421,1716407432012,-172.19050386,0.00012998,2]
[327736422,1716407432021,-326.14851848,0.00012998,2]
[327736424,1716407432030,-214.01381642,0.00012998,2]
[327736426,1716407432039,-165.39450271,0.00012998,2]
[327736428,1716407432048,-155.83533319,0.00012998,2]
[327736430,1716407432058,-162.53422443,0.00012999,2]
[327736432,1716407432067,-4294.64652253,0.00012999,2]
[327736434,1716407432076,-499.99,0.00012999,2]
[327736436,1716407432085,-112133.2006675,0.00013,2]
[327736438,1716407432096,-463.295,0.00013,2]
[327736441,1716407432120,-19735.06986418,0.00013,2]
[327736448,1716407432174,-308.4,0.00013,2]
[327736450,1716407432185,-2607.35455247,0.00013,2]
[327736453,1716407432196,-3805.28891888,0.00013,2]
[327736455,1716407432207,-2686.77929819,0.00013,2]
[327736458,1716407432226,-10229.95905532,0.00013,2]
[327736460,1716407432236,-4774.57106677,0.00013,2]
[327736760,1716407437678,-164576.76228679,0.00013,2]
[327736763,1716407437688,-149471.55430159,0.00013,2]
[327736765,1716407437702,-62195.91753967,0.00013,2]
[327736807,1716407439753,-14597.29337209,0.00013,2]
[327736808,1716407439768,-248182.74594076,0.00013,2]
[327736809,1716407439779,-872.19400098,0.00013,2]
[327736810,1716407439994,-5900.69999999,0.00013,2]
[327736811,1716407440215,-313.6881989,0.00013,2]
[327736812,1716407440239,-12644.65270377,0.00013,2]
[327736818,1716407442595,-439.444916,0.00013,2]
[327736819,1716407442663,-305074.26595651,0.00013,2]
[327736820,1716407442673,-168.9827277,0.00013273,2]
[327736821,1716407442682,-195.92344364,0.00013273,2]
[327736822,1716407442691,-218.75858398,0.00013373,2]
[327736823,1716407442700,-196.21,0.00013612,2]
[327736824,1716407442710,-1500.0,0.00013766,2]
[327736825,1716407442719,-500.0,0.00013811,2]
[327736826,1716407442729,-173.75,0.00013973,2]
[327736827,1716407442738,-327.93,0.00013973,2]
[327736828,1716407442747,-165.57,0.00013973,2]
[327736829,1716407442757,-250.0,0.00014075,2]
[327736830,1716407442768,-200.0,0.00014241,2]
[327736831,1716407442780,-428.57028176,0.00014471,2]
[327736832,1716407442790,-250.0,0.00014915,2]
[327736833,1716407442799,-257.72182443,0.00015,2]
[327736834,1716407442809,-619.02429447,0.00015,2]
[327736835,1716407442818,-62185.92648205,0.00015,2]
[327736836,1716407443139,-463.80189035,0.00015,2]
[327736837,1716407443151,-433.88820574,0.00015,2]
[327736838,1716407443162,-3917.43486083,0.00015,2]
[327736839,1716407443171,-2751.0,0.00015107,2]
[327736841,1716407443180,-313.2,0.00015127,2]
[327736842,1716407443190,-210.90820627,0.00015829,2]
[327736844,1716407443199,-176.85,0.00015831,2]
[327736845,1716407443209,-300.0,0.00015844,2]
[327736847,1716407443219,-953.66,0.00015877,2]
[327736849,1716407443228,-1000.0,0.00015916,2]
[327736851,1716407443237,-428.57028176,0.00016043,2]
[327736852,1716407443246,-202.159819,0.00016203,2]
[327736854,1716407443256,-176.85,0.00017137,2]
[327736856,1716407443265,-300.0,0.00017214,2]
[327736857,1716407443275,-313.2,0.00017391,2]
[327736859,1716407443284,-428.57028176,0.00017614,2]
[327736860,1716407443293,-867.0,0.000178,2]
[327736862,1716407443302,-200.0,0.00017856,2]
[327736864,1716407443311,-1000.0,0.00017856,2]
[327736865,1716407443321,-500.0,0.00017856,2]
[327736867,1716407443330,-200.0,0.00017856,2]
[327736869,1716407443340,-1000.0,0.00017906,2]
[327736870,1716407443349,-158.48372415,0.00018,2]
[327736872,1716407443359,-1367.16923872,0.00018163,2]
[327736874,1716407443375,-400.70588266,0.00018163,2]
[327736876,1716407443387,-218.92087862,0.00018163,2]
[327736878,1716407443398,-1089.07912551,0.00018163,2]
[327736879,1716407443410,-310.92087449,0.00018163,2]
[327736881,1716407443420,-974.0,0.00018163,2]
[327736883,1716407443430,-613.0,0.00018163,2]
[327736884,1716407443440,-612.138,0.00018163,2]
[327736886,1716407443449,-1297.963,0.00018163,2]
[327736887,1716407443459,-1263.0,0.00018163,2]
[327736889,1716407443468,-439.0,0.00018163,2]
[327736891,1716407443477,-445.0,0.00018163,2]
[327736892,1716407443487,-809.0,0.00018163,2]
[327736894,1716407443496,-164.0,0.00018163,2]
[327736895,1716407443506,-1649.0,0.00018163,2]
[327736896,1716407443516,-215.0,0.00018163,2]
[327736897,1716407443525,-1522.69359834,0.00018163,2]
[327736898,1716407443537,-872.30640166,0.00018163,2]
[327736899,1716407443546,-3162.0,0.00018163,2]
[327736900,1716407443556,-1137.0,0.00018163,2]
[327736901,1716407443566,-846.18,0.00018163,2]
[327736902,1716407443575,-37894.0,0.00018163,2]
[327736903,1716407443585,-289.0,0.00018163,2]
[327736904,1716407443594,-1061.0,0.00018163,2]
[327736905,1716407443604,-176.85,0.00018444,2]
[327736906,1716407443613,-953.66,0.00018616,2]
[327736907,1716407443625,-7280.67677928,0.0001883,2]
[327736908,1716407443635,-494.61625223,0.00019178,2]
[327736909,1716407443644,-326.03290011,0.00019178,2]
[327736910,1716407443653,-428.57028176,0.00019186,2]
[327736911,1716407443663,-313.2,0.00019655,2]
[327736912,1716407443673,-1000.0,0.00019896,2]
[327736913,1716407443683,-155.0,0.0002,2]
[327736914,1716407443692,-627.95805638,0.0002,2]
[327736915,1716407443702,-862.31038971,0.0002,2]
[327736916,1716407443712,-6239.63008206,0.0002,2]
[327736917,1716407443721,-5186.20094472,0.0002,2]
[327736918,1716407443731,-155.0,0.0002,2]
[327736919,1716407443741,-1773.62143972,0.0002,2]
[327736920,1716407443750,-157.09493537,0.0002,2]
[327736932,1716407445672,-841.5176667,0.0002,2]
[327736935,1716407445683,-769.5462332,0.0002,2]
[327736936,1716407445695,-9278.18348099,0.0002,2]
[327736938,1716407445705,-1263.30642158,0.0002,2]
[327736940,1716407445714,-327.93,0.00020447,2]
[327736941,1716407445723,-167.0,0.00020493,2]
[327736943,1716407445732,-150.0,0.000205,2]
[327736945,1716407445742,-500.0,0.00020546,2]
[327736947,1716407445751,-500.0,0.00020546,2]
[327736949,1716407445760,-500.0,0.00020546,2]
[327736951,1716407445773,-500.0,0.00020546,2]
[327736953,1716407445782,-500.0,0.00020546,2]
[327736955,1716407445791,-500.0,0.00020546,2]
[327736956,1716407445800,-500.0,0.00020546,2]
[327736958,1716407445810,-500.0,0.00020546,2]
[327736960,1716407445820,-500.0,0.00020546,2]
[327736962,1716407445829,-500.0,0.00020546,2]
[327736964,1716407445839,-500.0,0.00020546,2]
[327736966,1716407445850,-367.57398365,0.00020546,2]
[327736968,1716407445862,-132.42601635,0.00020546,2]
[327736970,1716407445871,-500.0,0.00020546,2]
[327736972,1716407445882,-500.0,0.00020546,2]
[327736973,1716407445891,-500.0,0.00020546,2]
[327736975,1716407445901,-500.0,0.00020546,2]
[327736977,1716407445911,-500.0,0.00020546,2]
[327736978,1716407445920,-500.0,0.00020546,2]
[327736979,1716407445929,-500.0,0.00020546,2]
[327736980,1716407445938,-500.0,0.00020546,2]
[327736981,1716407445947,-500.0,0.00020546,2]
[327736982,1716407445957,-500.0,0.00020546,2]
[327736984,1716407445966,-500.0,0.00020546,2]
[327736986,1716407445975,-1100.0,0.00020546,2]
[327736988,1716407445985,-500.0,0.00020546,2]
[327736990,1716407445994,-428.57028176,0.00020757,2]
[327736992,1716407446003,-378.25,0.00020986,2]
[327736994,1716407446012,-717.9371715,0.00021,2]
[327736996,1716407446022,-1750.0,0.00021,2]
[327736998,1716407446031,-256.0,0.00021,2]
[327737000,1716407446041,-150.0,0.00021,2]
[327737001,1716407446050,-1100.0,0.00021094,2]
[327737003,1716407446059,-1400.0,0.00021163,2]
[327737005,1716407446068,-323.077,0.00021163,2]
[327737007,1716407446078,-1345.837,0.00021163,2]
[327737009,1716407446087,-848.671,0.00021163,2]
[327737011,1716407446096,-10958.207,0.00021163,2]
[327737013,1716407446106,-1061.0,0.00021163,2]
[327737015,1716407446115,-167.0,0.0002117,2]
[327737017,1716407446126,-870.02,0.00021276,2]
[327737019,1716407446135,-415.7,0.00021276,2]
[327737020,1716407446145,-870.02,0.00021276,2]
[327737022,1716407446154,-415.7,0.00021276,2]
[327737024,1716407446164,-415.7,0.00021276,2]
[327737026,1716407446173,-910.81,0.00021276,2]
[327737028,1716407446183,-870.02,0.00021276,2]
[327737030,1716407446195,-415.7,0.00021276,2]
[327737032,1716407446205,-415.7,0.00021276,2]
[327737034,1716407446215,-870.02,0.00021276,2]
[327737036,1716407446225,-953.66,0.00021356,2]
[327737038,1716407446236,-150.0,0.000215,3]
[327737040,1716407446245,-500.0,0.00021642,2]
[327737041,1716407446255,-1100.0,0.00021642,2]
[327737044,1716407446264,-167.0,0.00021846,2]
[327737061,1716407446275,-1000.0,0.00021885,2]
[327737065,1716407446450,-6771.4801469,0.000219,2]
[327737067,1716407446459,-1000.0,0.000219,2]
[327737068,1716407446469,-900.0,0.00021916,2]
[327737070,1716407446480,-1472.39,0.00021918,2]
[327737072,1716407446490,-163.86,0.00021918,2]
[327737074,1716407446500,-2000.0,0.00021918,2]
[327737076,1716407446510,-635.89,0.00021918,2]
[327737078,1716407446519,-313.2,0.00021919,2]
[327737080,1716407446529,-787.61802861,0.00022,2]
[327737082,1716407446538,-1000.0,0.00022,2]
[327737084,1716407446547,-150.0,0.00022,3]
[327737086,1716407446558,-317.1749504,0.00022031,2]
[327737088,1716407446568,-160.08255262,0.00022042,2]
[327737091,1716407446582,-153.23677825,0.00022068,2]
[327737092,1716407446591,-153.99414245,0.00022116,2]
[327737095,1716407446601,-1264.72460919,0.00022136,2]
[327737097,1716407446611,-742.09684654,0.00022161,2]
[327737098,1716407446620,-168.02233262,0.00022175,2]
[327737100,1716407446632,-1100.0,0.0002219,2]
[327737101,1716407446641,-415.7,0.00022235,2]
[327737102,1716407446651,-164.98658382,0.00022235,2]
[327737103,1716407446669,-705.03341618,0.00022235,2]
[327737104,1716407446678,-1018.77,0.00022235,2]
[327737105,1716407446688,-870.02,0.00022235,2]
[327737106,1716407446697,-870.02,0.00022235,2]
[327737107,1716407446707,-852.99,0.00022235,2]
[327737108,1716407446717,-157.39571037,0.00022251,2]
[327737109,1716407446726,-157.39571037,0.00022253,2]
[327737110,1716407446736,-158.52692095,0.00022262,2]
[327737111,1716407446746,-153.19687062,0.00022278,2]
[327737112,1716407446755,-428.57028176,0.00022329,2]
[327737113,1716407446767,-163.97443191,0.00022347,2]
[327737114,1716407446784,-206.75297013,0.00022365,2]
[327737115,1716407446793,-159.81237792,0.0002238,2]
[327737116,1716407446802,-1260.94108131,0.000224,2]
[327737117,1716407446813,-900.0,0.00022464,2]
[327737118,1716407446822,-155.0,0.00022466,2]
[327737119,1716407446831,-153.32026937,0.00022486,2]
[327737120,1716407446841,-380.41775474,0.0002249,2]
[327737121,1716407446852,-157.7851145,0.00022494,2]
[327737122,1716407446862,-150.0,0.000225,3]
[327737123,1716407446871,-167.0,0.00022523,2]
[327737124,1716407446881,-153.99414245,0.00022573,2]
[327737125,1716407446891,-317.1749504,0.00022578,2]
[327737126,1716407446900,-159.03411987,0.00022608,2]
[327737127,1716407446910,-155.22175349,0.00022632,2]
[327737128,1716407446919,-155.19421787,0.0002267,2]
[327737129,1716407446929,-155.22175349,0.00022718,2]
[327737130,1716407446938,-500.0,0.00022738,2]
[327737131,1716407446948,-1100.0,0.00022738,2]
[327737132,1716407446957,-1279.30781,0.0002277,2]
[327737133,1716407446967,-174.23404,0.0002277,2]
[327737134,1716407446976,-159.52436598,0.00022773,2]
[327737135,1716407446986,-4790.53384511,0.000228,3]
[327737136,1716407446995,-159.52436598,0.00022852,2]
[327737137,1716407447005,-153.23677825,0.00022853,2]
[327737138,1716407447018,-159.52436598,0.00022871,2]
[327737139,1716407447027,-158.52692095,0.00022873,2]
[327737140,1716407447037,-831.2926,0.00022898,2]
[327737141,1716407447047,-179.02540883,0.00022899,2]
[327737142,1716407447058,-4062.17958122,0.000229,2]
[327737143,1716407447067,-213.0782,0.000229,2]
[327737144,1716407447076,-247.17089428,0.000229,2]
[327737145,1716407447086,-1723.83732194,0.000229,2]
[327737146,1716407447095,-168.53006914,0.000229,2]
[327737147,1716407447105,-742.09684654,0.00022929,2]
[327737148,1716407447114,-172.03003518,0.00022949,2]
[327737149,1716407447125,-153.23677825,0.00022958,2]
[327737150,1716407447134,-263.5,0.0002297,15]
[327737151,1716407447143,-150.5,0.0002298,15]
[327737152,1716407447153,-509.51322217,0.00022986,2]
[327737153,1716407447166,-290.48677783,0.00022986,2]
[327737154,1716407447175,-299.0,0.0002299,15]
[327737155,1716407447185,-150.5,0.0002299,15]
[327737156,1716407447196,-4062.17958121,0.00022991,2]
[327737157,1716407447205,-1197.60421444,0.00022996,2]
[327737158,1716407447221,-9560.22395716,0.00022996,2]
[327737159,1716407447231,-1203.6364339,0.00022996,2]
[327737160,1716407447240,-92939.5803971,0.00022996,2]
[327737161,1716407447249,-6468.7614313,0.00022996,2]
[327737162,1716407447259,-18142.185569,0.00022996,2]
[327737163,1716407447268,-234.1769208,0.00022998,2]
[327737164,1716407447277,-281.84379049,0.00022998,2]
[327737165,1716407447287,-305.72421467,0.00022998,2]
[327737166,1716407447296,-314.81387529,0.00022998,2]
[327737167,1716407447306,-1088.09817607,0.00022998,2]
[327737168,1716407447315,-155.0,0.00022998,2]
[327737169,1716407447325,-201.69555185,0.00022998,2]
[327737170,1716407447335,-5555.9306126,0.00022998,2]
[327737171,1716407447344,-155.0,0.00022998,2]
[327737172,1716407447355,-155.64032327,0.00022998,2]
[327737173,1716407447365,-492.35201586,0.00022998,2]
[327737174,1716407447376,-171.75414039,0.00022998,2]
[327737175,1716407447386,-422.45066744,0.00022998,2]
[327737176,1716407447397,-155.0,0.00022998,2]
[327737177,1716407447407,-162.1206231,0.00022998,2]
[327737178,1716407447418,-206.88313584,0.00022998,2]
[327737179,1716407447428,-201.23638426,0.00022998,2]
[327737180,1716407447437,-202.33976626,0.00022998,2]
[327737181,1716407447447,-156.15446369,0.00022998,2]
[327737182,1716407447456,-656.27275998,0.00022998,2]
[327737183,1716407447465,-166.81757453,0.00022998,2]
[327737184,1716407447475,-155.0,0.00022998,2]
[327737185,1716407447485,-208.17791052,0.00022998,2]
[327737186,1716407447495,-2819.42201046,0.00022998,2]
[327737187,1716407447505,-782.13638794,0.00022998,2]
[327737188,1716407447515,-155.0,0.00022998,2]
[327737189,1716407447525,-789.3712268,0.00022998,2]
[327737190,1716407447535,-719.70142776,0.00022998,2]
[327737191,1716407447545,-307.63030652,0.00022998,2]
[327737192,1716407447555,-199.62095941,0.00022998,2]
[327737193,1716407447565,-574.34871661,0.00022998,2]
[327737194,1716407447574,-156.11125263,0.00022998,2]
[327737195,1716407447583,-156.26933254,0.00022998,2]
[327737196,1716407447593,-156.06342329,0.00022998,2]
[327737197,1716407447602,-165.39781373,0.00022998,2]
[327737198,1716407447612,-200.21998404,0.00022998,2]
[327737199,1716407447621,-172.83305763,0.00022998,2]
[327737200,1716407447633,-157.60689553,0.00022998,2]
[327737201,1716407447643,-3089.166756,0.00022998,2]
[327737202,1716407447654,-309.36433504,0.00022998,2]
[327737203,1716407447664,-155.0,0.00022998,2]
[327737204,1716407447674,-162.08171337,0.00022998,2]
[327737205,1716407447684,-200.34341848,0.00022998,2]
[327737206,1716407447693,-155.09581377,0.00022998,2]
[327737207,1716407447703,-223.69513029,0.00022998,2]
[327737208,1716407447712,-198.48321054,0.00022998,2]
[327737209,1716407447721,-360.9493394,0.00022998,5]
[327737210,1716407447731,-2221.6315313,0.00022998,7]
[327737211,1716407447740,-306.18050944,0.00022998,2]
[327737212,1716407447750,-191.01447024,0.00022998,2]
[327737213,1716407447760,-712.69569483,0.00022998,2]
[327737214,1716407447774,-201.75450533,0.00022998,2]
[327737215,1716407447784,-356.13965081,0.00022998,2]
[327737216,1716407447793,-7514.47016042,0.00022998,2]
[327737217,1716407447803,-213.58249005,0.00022998,2]
[327737218,1716407447813,-617.91342405,0.00022998,2]
[327737219,1716407447822,-1212.0770862,0.00022998,2]
[327737220,1716407447831,-181.55850312,0.00022998,2]
[327737221,1716407447841,-155.85480608,0.00022998,2]
[327737222,1716407447853,-366.21466233,0.00022998,2]
[327737223,1716407447863,-280.37942823,0.00022998,2]
[327737224,1716407447873,-150.0,0.00022999,10]
[327737225,1716407447882,-208.1190654,0.00022999,2]
[327737226,1716407447892,-2496.42907447,0.00022999,2]
[327737227,1716407447901,-184900.67621737,0.00023,11]
[327737228,1716407447914,-389072.57387012,0.00023,11]
[327737229,1716407447923,-1176778.03193711,0.00023,5]
[327737230,1716407447943,-1482.98466733,0.00023,5]
[327737231,1716407447955,-3264.2630295,0.00023,5]
[327737232,1716407447967,-1649.32414159,0.00023,5]
[327737233,1716407447979,-4423.89717805,0.00023,5]
[327737234,1716407447990,-40372.41905497,0.00023,5]
[327737235,1716407448006,-8623.31057665,0.00023,5]
[327737236,1716407448016,-5499.51940812,0.00023,5]
[327737237,1716407448032,-22588.03498689,0.00023,5]
[327737238,1716407448043,-4577.63206535,0.00023,5]